[Event "Kragero Resort Chess A 2019"]
[Site "Kragero"]
[Date "2019.02.21"]
[Round "3.11"]
[White "Gharibyan, Mamikon"]
[Black "Hauge, Lars Oskar"]
[Result "0-1"]
[ECO "A10"]
[WhiteElo "2318"]
[BlackElo "2476"]
[Annotator "RC"]
[PlyCount "76"]
[EventDate "2019.02.20"]
[EventType "swiss"]
[EventCountry "NOR"]
[SourceTitle "playchess.com"]
[Source "ChessBase"]
[SourceQuality "1"]
[TimeControl "5400+30"]

1. Nf3 {[%emt 0:00:13]} e6 {[%emt 0:00:00]} 2. c4 {[%emt 0:00:33]} f5 {[%emt 0:01:22]} 3. g3 {[%emt 0:01:33]} Nf6 {[%emt 0:00:06]} 4. Bg2 {[%emt 0:00:18]} d5 {[%emt 0:02:47]} 5. O-O {[%emt 0:01:27]} Bd6 {[%emt 0:00:42]} 6. Nc3 {[%emt 0:04:10]} O-O {[%emt 0:01:40]} 7. Qc2 {[%emt 0:01:04]} c6 {[%emt 0:03:58]} 8. d3 {[%emt 0:01:58]} Bc7 {[%emt 0:15:05]} 9. d4 {[%emt 0:08:28]} Qe7 {[%emt 0:04:16]} 10. Ne5 {[%emt 0:05:26]} Bxe5 {[%emt 0:03:55]} 11. dxe5 {[%emt 0:00:11]} Ng4 {[%emt 0:00:09]} 12. cxd5 {[%emt 0:02:09]} exd5 {[%emt 0:00:46]} 13. f4 {[%emt 0:01:08]} Qc5+ {[%emt 0:06:41]} 14. e3 {[%emt 0:01:27]} Nxe3 {[%emt 0:01:44]} 15. Qf2 {[%emt 0:00:42]} d4 {[%emt 0:00:08]} 16. Bxe3 {[%emt 0:01:06]} dxe3 {[%emt 0:00:26]} 17. Qe2 {[%emt 0:00:24]} Be6 {[%emt 0:02:22]} 18. Rfe1 {[%emt 0:03:19]} Na6 {[%emt 0:00:20]} 19. Rac1 {[%emt 0:05:56]} Qb6 {[%emt 0:04:07]} 20. Na4 {[%emt 0:05:43]} Qb4 {[%emt 0:00:43]} 21. b3 {[%emt 0:02:42]} Rfd8 {[%emt 0:01:23]} 22. Qxe3 {[%emt 0:01:15]} Qd2 {[%emt 0:01:41]} 23. Nc3 {[%emt 0:19:07]} Nb4 {[%emt 0:02:22]} 24. Re2 {[%emt 0:09:15]} Qxe3+ {[%emt 0:00:17]} 25. Rxe3 {[%emt 0:00:03]} Rd2 {[%emt 0:01:00]} 26. Na4 {[%emt 0:09:35]} Nxa2 {[%emt 0:01:43]} 27. Rce1 {[%emt 0:01:10]} b6 {[%emt 0:02:00]} 28. Ra1 {[%emt 0:05:36]} Rad8 {[%emt 0:02:20]} 29. g4 {[%emt 0:03:45]} fxg4 {[%emt 0:03:52]} 30. f5 {[%emt 0:00:41]} Bxf5 {[%emt 0:00:08]} 31. Bxc6 {[%emt 0:00:24]} Nb4 {[%emt 0:00:58]} 32. Be4 {[%emt 0:00:06]} Nc2 {[%emt 0:07:58]} 33. Bxc2 {[%emt 0:01:25]} Rxc2 {[%emt 0:00:12]} 34. Nc3 {[%emt 0:00:50]} Rdd2 {[%emt 0:01:52]} 35. Nb5 {[%emt 0:00:51]} Rg2+ {[%emt 0:00:24]} 36. Kf1 {[%emt 0:00:06]} Rxh2 {[%emt 0:00:09]} 37. Kg1 {[%emt 0:00:07]} Rhg2+ {[%emt 0:01:06]} 38. Kf1 {[%emt 0:00:39]} g3 {[%emt 0:00:18]} 0-1

[Event "Kragero Resort Chess A 2019"]
[Site "Kragero"]
[Date "2019.02.21"]
[Round "3.13"]
[White "Bergsson, Stefan"]
[Black "Thorfinnsson, Bragi"]
[Result "1/2-1/2"]
[ECO "C47"]
[WhiteElo "2172"]
[BlackElo "2438"]
[Annotator "NA"]
[PlyCount "20"]
[EventDate "2019.02.20"]
[EventType "swiss"]
[EventCountry "NOR"]
[SourceTitle "playchess.com"]
[Source "ChessBase"]
[SourceQuality "1"]
[TimeControl "5400+30"]

1. e4 {[%emt 0:01:24]} e5 {[%emt 0:00:00]} 2. Nf3 {[%emt 0:00:46]} Nc6 {[%emt 0:00:00]} 3. Nc3 {[%emt 0:01:18]} Nf6 {[%emt 0:00:10]} 4. d4 {[%emt 0:00:50]} exd4 {[%emt 0:00:23]} 5. Nxd4 {[%emt 0:00:03]} Bb4 {[%emt 0:00:25]} 6. Nxc6 {[%emt 0:00:51]} bxc6 {[%emt 0:00:08]} 7. Bd3 {[%emt 0:00:17]} O-O {[%emt 0:01:32]} 8. O-O {[%emt 0:00:29]} d5 {[%emt 0:00:18]} 9. exd5 {[%emt 0:00:17]} cxd5 {[%emt 0:00:09]} 10. Bg5 {[%emt 0:01:08]} c6 {[%emt 0:00:29]} 1/2-1/2

[Event "Kragero Resort Chess A 2019"]
[Site "Kragero"]
[Date "2019.02.21"]
[Round "3.14"]
[White "Osmak, Iulija"]
[Black "Kizatbay, Abyl"]
[Result "1-0"]
[ECO "A45"]
[WhiteElo "2394"]
[BlackElo "2084"]
[Annotator "NA"]
[PlyCount "65"]
[EventDate "2019.02.20"]
[EventType "swiss"]
[EventCountry "NOR"]
[SourceTitle "playchess.com"]
[Source "ChessBase"]
[SourceQuality "1"]
[TimeControl "5400+30"]

1. d4 {[%emt 0:01:05]} Nf6 {[%emt 0:00:00]} 2. Bf4 {[%emt 0:00:19]} g6 {[%emt 0:00:13]} 3. Nc3 {[%emt 0:00:08]} d5 {[%emt 0:00:05]} 4. e3 {[%emt 0:00:07]} Bg7 {[%emt 0:00:17]} 5. h4 {[%emt 0:00:07]} c6 {[%emt 0:01:59]} 6. Be2 {[%emt 0:00:25]} h5 {[%emt 0:00:16]} 7. Nf3 {[%emt 0:00:22]} Bg4 {[%emt 0:01:04]} 8. Ne5 {[%emt 0:02:19]} Bxe2 {[%emt 0:01:47]} 9. Qxe2 {[%emt 0:00:13]} Nbd7 {[%emt 0:06:07]} 10. f3 {[%emt 0:05:33]} Nxe5 {[%emt 0:05:52]} 11. Bxe5 {[%emt 0:01:38]} Qb6 {[%emt 0:00:55]} 12. O-O-O {[%emt 0:01:00]} O-O-O {[%emt 0:06:27]} 13. e4 {[%emt 0:03:58]} Rhg8 {[%emt 0:09:01]} 14. exd5 {[%emt 0:08:02]} Bh6+ {[%emt 0:05:30]} 15. Kb1 {[%emt 0:00:37]} Nxd5 {[%emt 0:03:00]} 16. Nxd5 {[%emt 0:02:42]} Rxd5 {[%emt 0:04:37]} 17. Bh2 {[%emt 0:02:33]} Bg7 {[%emt 0:12:51]} 18. c3 {[%emt 0:07:07]} Bf6 {[%emt 0:01:24]} 19. Qe4 {[%emt 0:02:44]} Rgd8 {[%emt 0:01:40]} 20. Qf4 {[%emt 0:07:23]} a5 {[%emt 0:04:56]} 21. Ka1 {[%emt 0:12:04]} a4 {[%emt 0:02:04]} 22. Rb1 {[%emt 0:04:48]} Rf5 {[%emt 0:07:54]} 23. Qe4 {[%emt 0:04:53]} Qa5 {[%emt 0:10:10]} 24. g4 {[%emt 0:02:37]} hxg4 {[%emt 0:02:44]} 25. fxg4 {[%emt 0:00:06]} Rb5 {[%emt 0:03:16]} 26. g5 {[%emt 0:00:54]} Bh8 {[%emt 0:00:02]} 27. Qxe7 {[%emt 0:01:14]} c5 {[%emt 0:01:30]} 28. Qxf7 {[%emt 0:04:24]} a3 {[%emt 0:00:10]} 29. Qe6+ {[%emt 0:01:09]} Rd7 {[%emt 0:00:44]} 30. Rhf1 {[%emt 0:00:34]} Qd8 {[%emt 0:03:40]} 31. bxa3 {[%emt 0:08:48]} Rxb1+ {[%emt 0:01:21]} 32. Kxb1 {[%emt 0:00:13]} Qb6+ {[%emt 0:03:34]} 33. Qxb6 {[%emt 0:00:07]} 1-0

[Event "Kragero Resort Chess A 2019"]
[Site "Kragero"]
[Date "2019.02.21"]
[Round "3.15"]
[White "Abdrlauf, Elham"]
[Black "Heimisson, Hilmir Freyr"]
[Result "1-0"]
[ECO "B90"]
[WhiteElo "2105"]
[BlackElo "2394"]
[Annotator "NA"]
[PlyCount "145"]
[EventDate "2019.02.20"]
[EventType "swiss"]
[EventCountry "NOR"]
[SourceTitle "playchess.com"]
[Source "ChessBase"]
[SourceQuality "1"]
[TimeControl "5400+30"]

1. e4 {[%emt 0:00:00]} c5 {[%emt 0:00:00]} 2. Nf3 {[%emt 0:00:00]} d6 {[%emt 0:00:00]} 3. d4 {[%emt 0:00:21]} cxd4 {[%emt 0:00:00]} 4. Nxd4 {[%emt 0:00:07]} Nf6 {[%emt 0:00:00]} 5. Nc3 {[%emt 0:00:08]} a6 {[%emt 0:00:00]} 6. h3 {[%emt 0:00:21]} e5 {[%emt 0:00:00]} 7. Nb3 {[%emt 0:00:01]} h5 {[%emt 0:00:02]} 8. f4 {[%emt 0:06:12]} Nbd7 {[%emt 0:04:54]} 9. Be2 {[%emt 0:07:34]} Be7 {[%emt 0:01:31]} 10. O-O {[%emt 0:01:14]} Qc7 {[%emt 0:01:30]} 11. Nd5 {[%emt 0:04:36]} Nxd5 {[%emt 0:00:28]} 12. exd5 {[%emt 0:00:02]} h4 {[%emt 0:11:49]} 13. c4 {[%emt 0:03:07]} Bf6 {[%emt 0:04:22]} 14. Be3 {[%emt 0:02:28]} b6 {[%emt 0:10:14]} 15. fxe5 {[%emt 0:03:31]} Nxe5 {[%emt 0:01:25]} 16. Nd4 {[%emt 0:01:42]} Bd7 {[%emt 0:07:23]} 17. Rc1 {[%emt 0:01:19]} O-O {[%emt 0:05:32]} 18. Rxf6 {[%emt 0:08:25]} gxf6 {[%emt 0:00:02]} 19. Qe1 {[%emt 0:00:02]} Ng6 {[%emt 0:02:32]} 20. Qf2 {[%emt 0:00:08]} Rfe8 {[%emt 0:03:05]} 21. Nf3 {[%emt 0:06:06]} Rxe3 {[%emt 0:03:42]} 22. Qxe3 {[%emt 0:00:33]} Re8 {[%emt 0:00:01]} 23. Qf2 {[%emt 0:00:33]} Qc5 {[%emt 0:00:11]} 24. Bf1 {[%emt 0:10:00]} f5 {[%emt 0:21:58]} 25. Rc2 {[%emt 0:03:21]} Kg7 {[%emt 0:00:41]} 26. b4 {[%emt 0:00:44]} Qxf2+ {[%emt 0:02:32]} 27. Kxf2 {[%emt 0:00:13]} Rc8 {[%emt 0:02:56]} 28. c5 {[%emt 0:05:37]} dxc5 {[%emt 0:01:22]} 29. Bxa6 {[%emt 0:01:01]} Ra8 {[%emt 0:01:28]} 30. Bb7 {[%emt 0:00:23]} Ra7 {[%emt 0:02:35]} 31. bxc5 {[%emt 0:00:19]} bxc5 {[%emt 0:00:23]} 32. Bc6 {[%emt 0:00:15]} Nf4 {[%emt 0:07:18]} 33. Nxh4 {[%emt 0:01:31]} Kf6 {[%emt 0:01:04]} 34. Kg3 {[%emt 0:03:08]} Bxc6 {[%emt 0:01:44]} 35. dxc6 {[%emt 0:00:25]} Ne6 {[%emt 0:00:04]} 36. Rf2 {[%emt 0:01:13]} f4+ {[%emt 0:00:37]} 37. Kh2 {[%emt 0:00:16]} Rc7 {[%emt 0:00:34]} 38. g3 {[%emt 0:00:04]} Rxc6 {[%emt 0:00:14]} 39. Ng2 {[%emt 0:00:29]} Ke5 {[%emt 0:03:41]} 40. Nxf4 {[%emt 0:00:25]} c4 {[%emt 0:00:38]} 41. Ne2 {[%emt 0:00:42]} f5 {[%emt 0:00:53]} 42. h4 {[%emt 0:01:09]} c3 {[%emt 0:00:35]} 43. Nc1 {[%emt 0:00:47]} Nd4 {[%emt 0:00:38]} 44. a4 {[%emt 0:00:56]} Ke4 {[%emt 0:00:25]} 45. Ra2 {[%emt 0:00:25]} Ke3 {[%emt 0:00:35]} 46. a5 {[%emt 0:00:57]} c2 {[%emt 0:00:35]} 47. a6 {[%emt 0:00:35]} Rc8 {[%emt 0:00:13]} 48. a7 {[%emt 0:07:34]} Ra8 {[%emt 0:00:03]} 49. h5 {[%emt 0:00:07]} Kd2 {[%emt 0:00:22]} 50. Ra1 {[%emt 0:00:01]} Kc3 {[%emt 0:01:19]} 51. Ra6 {[%emt 0:02:24]} Kd2 {[%emt 0:00:31]} 52. Na2 {[%emt 0:00:11]} c1=Q {[%emt 0:00:42]} 53. Nxc1 {[%emt 0:00:06]} Kxc1 {[%emt 0:00:00]} 54. h6 {[%emt 0:00:20]} Kd2 {[%emt 0:00:53]} 55. h7 {[%emt 0:01:01]} Nf3+ {[%emt 0:00:34]} 56. Kg2 {[%emt 0:00:04]} Ng5 {[%emt 0:00:01]} 57. h8=Q {[%emt 0:00:14]} Rxh8 {[%emt 0:00:05]} 58. a8=Q {[%emt 0:00:14]} Rxa8 {[%emt 0:00:04]} 59. Rxa8 {[%emt 0:00:07]} Ke3 {[%emt 0:00:34]} 60. Re8+ {[%emt 0:00:02]} Kd4 {[%emt 0:01:26]} 61. Kf2 {[%emt 0:00:04]} Kd5 {[%emt 0:00:40]} 62. Ke3 {[%emt 0:00:14]} Ne6 {[%emt 0:00:08]} 63. Ra8 {[%emt 0:00:12]} Ke5 {[%emt 0:00:23]} 64. Ra5+ {[%emt 0:00:02]} Kf6 {[%emt 0:00:10]} 65. Kf3 {[%emt 0:00:34]} Nd4+ {[%emt 0:00:23]} 66. Kg2 {[%emt 0:00:16]} Kg5 {[%emt 0:01:25]} 67. Kh3 {[%emt 0:00:28]} Kg6 {[%emt 0:00:02]} 68. Rd5 {[%emt 0:00:21]} Ne6 {[%emt 0:00:57]} 69. Kh4 {[%emt 0:00:21]} f4 {[%emt 0:00:39]} 70. g4 {[%emt 0:00:38]} Kf6 {[%emt 0:00:39]} 71. Ra5 {[%emt 0:00:23]} Kg6 {[%emt 0:00:17]} 72. Rf5 {[%emt 0:00:02]} Kg7 {[%emt 0:00:36]} 73. Kh5 {[%emt 0:00:02]} 1-0

[Event "Kragero Resort Chess A 2019"]
[Site "Kragero"]
[Date "2019.02.21"]
[Round "3.16"]
[White "Saltvedt, Martin"]
[Black "Mihajlov, Sebastian"]
[Result "0-1"]
[ECO "E61"]
[WhiteElo "2095"]
[BlackElo "2357"]
[Annotator "NA"]
[PlyCount "80"]
[EventDate "2019.02.20"]
[EventType "swiss"]
[EventCountry "NOR"]
[SourceTitle "playchess.com"]
[Source "ChessBase"]
[SourceQuality "1"]
[TimeControl "5400+30"]

1. d4 {[%emt 0:00:00]} Nf6 {[%emt 0:00:00]} 2. Bf4 {[%emt 0:01:43]} g6 {[%emt 0:00:00]} 3. e3 {[%emt 0:00:18]} Bg7 {[%emt 0:00:00]} 4. c4 {[%emt 0:01:08]} O-O {[%emt 0:00:00]} 5. Nc3 {[%emt 0:00:15]} d6 {[%emt 0:00:01]} 6. Nf3 {[%emt 0:00:25]} Nc6 {[%emt 0:00:31]} 7. Be2 {[%emt 0:01:12]} Qe8 {[%emt 0:00:48]} 8. Nb5 {[%emt 0:03:41]} e5 {[%emt 0:03:56]} 9. dxe5 {[%emt 0:03:31]} dxe5 {[%emt 0:00:01]} 10. Bg3 {[%emt 0:00:14]} Qe7 {[%emt 0:00:08]} 11. O-O {[%emt 0:00:50]} Rd8 {[%emt 0:00:27]} 12. Qb3 {[%emt 0:01:34]} Ne4 {[%emt 0:00:33]} 13. Rfd1 {[%emt 0:01:24]} Be6 {[%emt 0:01:55]} 14. a3 {[%emt 0:04:17]} a6 {[%emt 0:01:08]} 15. Nc3 {[%emt 0:00:14]} Na5 {[%emt 0:01:51]} 16. Qc2 {[%emt 0:01:56]} Nxg3 {[%emt 0:00:20]} 17. hxg3 {[%emt 0:00:18]} Nxc4 {[%emt 0:00:14]} 18. Rxd8+ {[%emt 0:14:50]} Rxd8 {[%emt 0:00:12]} 19. Bxc4 {[%emt 0:01:42]} Bxc4 {[%emt 0:00:07]} 20. Qe4 {[%emt 0:00:15]} b5 {[%emt 0:00:27]} 21. a4 {[%emt 0:10:53]} Bd3 {[%emt 0:05:03]} 22. Qb7 {[%emt 0:04:23]} e4 {[%emt 0:02:49]} 23. axb5 {[%emt 0:05:31]} axb5 {[%emt 0:00:32]} 24. Nd4 {[%emt 0:03:14]} Bxd4 {[%emt 0:00:31]} 25. exd4 {[%emt 0:00:11]} e3 {[%emt 0:01:34]} 26. fxe3 {[%emt 0:17:07]} Qxe3+ {[%emt 0:02:17]} 27. Kh2 {[%emt 0:00:07]} Qxd4 {[%emt 0:03:10]} 28. Qxc7 {[%emt 0:02:43]} b4 {[%emt 0:05:58]} 29. Ra7 {[%emt 0:02:07]} Qf6 {[%emt 0:00:09]} 30. Nd1 {[%emt 0:03:42]} Rd5 {[%emt 0:02:14]} 31. Ne3 {[%emt 0:02:00]} Rh5+ {[%emt 0:06:47]} 32. Kg1 {[%emt 0:00:09]} Kg7 {[%emt 0:00:07]} 33. Qd7 {[%emt 0:03:07]} Re5 {[%emt 0:05:07]} 34. Qd4 {[%emt 0:03:28]} b3 {[%emt 0:10:05]} 35. Rb7 {[%emt 0:02:03]} Bc2 {[%emt 0:00:15]} 36. Qa7 {[%emt 0:06:49]} Re8 {[%emt 0:01:30]} 37. Nc4 {[%emt 0:00:37]} Re1+ {[%emt 0:00:24]} 38. Kh2 {[%emt 0:00:01]} Be4 {[%emt 0:00:09]} 39. Rxb3 {[%emt 0:00:56]} Bxg2 {[%emt 0:02:20]} 40. Kxg2 {[%emt 0:00:33]} Qf1+ {[%emt 0:00:05]} 0-1

[Event "Kragero Resort Chess A 2019"]
[Site "Kragero"]
[Date "2019.02.21"]
[Round "3.17"]
[White "Birkisson, Bjorn Holm"]
[Black "Doluhanova, Evgeniya"]
[Result "1/2-1/2"]
[ECO "B50"]
[WhiteElo "2078"]
[BlackElo "2348"]
[Annotator "NA"]
[PlyCount "44"]
[EventDate "2019.02.20"]
[EventType "swiss"]
[EventCountry "NOR"]
[SourceTitle "playchess.com"]
[Source "ChessBase"]
[SourceQuality "1"]
[TimeControl "5400+30"]

1. e4 {[%emt 0:00:28]} c5 {[%emt 0:01:16]} 2. Nf3 {[%emt 0:01:34]} d6 {[%emt 0:00:26]} 3. Bd3 {[%emt 0:02:39]} Nc6 {[%emt 0:00:36]} 4. c3 {[%emt 0:00:05]} g6 {[%emt 0:00:23]} 5. O-O {[%emt 0:00:20]} Bg7 {[%emt 0:00:06]} 6. Re1 {[%emt 0:01:17]} Nf6 {[%emt 0:01:35]} 7. Bf1 {[%emt 0:06:21]} O-O {[%emt 0:00:21]} 8. d4 {[%emt 0:01:02]} cxd4 {[%emt 0:00:53]} 9. cxd4 {[%emt 0:00:30]} Bg4 {[%emt 0:00:10]} 10. Nc3 {[%emt 0:09:00]} Bxf3 {[%emt 0:03:59]} 11. gxf3 {[%emt 0:00:11]} Nh5 {[%emt 0:00:51]} 12. d5 {[%emt 0:01:23]} Nb8 {[%emt 0:05:59]} 13. f4 {[%emt 0:02:58]} f5 {[%emt 0:04:38]} 14. e5 {[%emt 0:01:26]} Nd7 {[%emt 0:02:39]} 15. Be2 {[%emt 0:06:11]} dxe5 {[%emt 0:00:37]} 16. Bxh5 {[%emt 0:01:44]} gxh5 {[%emt 0:00:08]} 17. fxe5 {[%emt 0:00:58]} Nxe5 {[%emt 0:01:08]} 18. Qxh5 {[%emt 0:03:37]} Rf6 {[%emt 0:00:49]} 19. Kh1 {[%emt 0:01:41]} Nd3 {[%emt 0:02:39]} 20. Re2 {[%emt 0:01:07]} Nxc1 {[%emt 0:07:22]} 21. Rxc1 {[%emt 0:00:43]} Qd6 {[%emt 0:00:31]} 22. Qf3 {[%emt 0:03:27]} Rd8 {[%emt 0:56:44]} 1/2-1/2

[Event "Kragero Resort Chess A 2019"]
[Site "Kragero"]
[Date "2019.02.21"]
[Round "3.18"]
[White "Kvaloy, Aksel Bu"]
[Black "Vestby-Ellingsen, Mads"]
[Result "0-1"]
[ECO "A35"]
[WhiteElo "2066"]
[BlackElo "2343"]
[Annotator "NA"]
[PlyCount "86"]
[EventDate "2019.02.20"]
[EventType "swiss"]
[EventCountry "NOR"]
[SourceTitle "playchess.com"]
[Source "ChessBase"]
[SourceQuality "1"]
[TimeControl "5400+30"]

1. c4 {[%emt 0:00:00]} c5 {[%emt 0:00:34]} 2. Nc3 {[%emt 0:00:53]} Nc6 {[%emt 0:00:16]} 3. Nf3 {[%emt 0:00:22]} g6 {[%emt 0:00:39]} 4. e3 {[%emt 0:00:34]} d6 {[%emt 0:07:24]} 5. d4 {[%emt 0:03:12]} Bg7 {[%emt 0:00:44]} 6. d5 {[%emt 0:02:04]} Ne5 {[%emt 0:01:06]} 7. Nxe5 {[%emt 0:00:42]} Bxe5 {[%emt 0:00:17]} 8. Qc2 {[%emt 0:00:59]} Bg7 {[%emt 0:01:10]} 9. Be2 {[%emt 0:01:41]} Nf6 {[%emt 0:02:21]} 10. O-O {[%emt 0:01:33]} O-O {[%emt 0:00:18]} 11. e4 {[%emt 0:07:00]} e6 {[%emt 0:01:02]} 12. dxe6 {[%emt 0:04:57]} fxe6 {[%emt 0:03:00]} 13. Bg5 {[%emt 0:01:56]} a6 {[%emt 0:06:17]} 14. Rad1 {[%emt 0:03:42]} Qc7 {[%emt 0:00:47]} 15. Qd2 {[%emt 0:01:47]} Ne8 {[%emt 0:01:12]} 16. h4 {[%emt 0:02:33]} Qf7 {[%emt 0:06:35]} 17. h5 {[%emt 0:16:44]} gxh5 {[%emt 0:01:25]} 18. Bh6 {[%emt 0:01:17]} Bd7 {[%emt 0:11:38]} 19. Bxg7 {[%emt 0:07:27]} Kxg7 {[%emt 0:06:42]} 20. Qg5+ {[%emt 0:05:41]} Qg6 {[%emt 0:00:20]} 21. Qh4 {[%emt 0:01:26]} Qf6 {[%emt 0:15:30]} 22. Qxf6+ {[%emt 0:02:17]} Kxf6 {[%emt 0:00:25]} 23. Bxh5 {[%emt 0:00:13]} Ke7 {[%emt 0:00:17]} 24. Bxe8 {[%emt 0:01:35]} Raxe8 {[%emt 0:00:58]} 25. Rd3 {[%emt 0:05:11]} Bc6 {[%emt 0:02:07]} 26. Rfd1 {[%emt 0:00:45]} Rd8 {[%emt 0:00:13]} 27. Rh3 {[%emt 0:00:22]} Rf7 {[%emt 0:00:30]} 28. f3 {[%emt 0:00:38]} b5 {[%emt 0:01:40]} 29. e5 {[%emt 0:03:49]} bxc4 {[%emt 0:04:56]} 30. exd6+ {[%emt 0:00:08]} Rxd6 {[%emt 0:00:18]} 31. Rxd6 {[%emt 0:00:08]} Kxd6 {[%emt 0:00:14]} 32. Kf2 {[%emt 0:02:51]} Rb7 {[%emt 0:00:30]} 33. Nd1 {[%emt 0:03:25]} Ba4 {[%emt 0:00:52]} 34. Rh1 {[%emt 0:00:12]} Kc6 {[%emt 0:01:24]} 35. Nc3 {[%emt 0:00:29]} Rxb2+ {[%emt 0:00:26]} 36. Kg3 {[%emt 0:00:49]} Bc2 {[%emt 0:01:12]} 37. Kf4 {[%emt 0:04:05]} Bd3 {[%emt 0:02:48]} 38. g4 {[%emt 0:02:50]} Rc2 {[%emt 0:01:23]} 39. Nd1 {[%emt 0:00:25]} Rxa2 {[%emt 0:01:40]} 40. Re1 {[%emt 0:00:53]} Ra1 {[%emt 0:01:31]} 41. Rxe6+ {[%emt 0:01:39]} Kd7 {[%emt 0:00:10]} 42. Re1 {[%emt 0:00:18]} c3 {[%emt 0:01:02]} 43. Ke3 {[%emt 0:00:28]} c2 {[%emt 0:00:18] Kd4 [%emt 00:00:16]} 0-1

[Event "Kragero Resort Chess A 2019"]
[Site "Kragero"]
[Date "2019.02.21"]
[Round "3.19"]
[White "Flasen, Aleksander"]
[Black "Hobber, Anders"]
[Result "1/2-1/2"]
[ECO "C10"]
[WhiteElo "2036"]
[BlackElo "2312"]
[Annotator "NA"]
[PlyCount "97"]
[EventDate "2019.02.20"]
[EventType "swiss"]
[EventCountry "NOR"]
[SourceTitle "playchess.com"]
[Source "ChessBase"]
[SourceQuality "1"]
[TimeControl "5400+30"]

1. e4 {[%emt 0:00:00]} e6 {[%emt 0:00:31]} 2. Nf3 {[%emt 0:00:17]} d5 {[%emt 0:00:22]} 3. Nc3 {[%emt 0:00:07]} dxe4 {[%emt 0:01:31]} 4. Nxe4 {[%emt 0:00:06]} Nd7 {[%emt 0:00:26]} 5. d4 {[%emt 0:01:13]} Ngf6 {[%emt 0:00:14]} 6. Nxf6+ {[%emt 0:02:27]} Nxf6 {[%emt 0:00:32]} 7. Bd3 {[%emt 0:00:52]} c5 {[%emt 0:00:24]} 8. c3 {[%emt 0:14:17]} cxd4 {[%emt 0:02:21]} 9. cxd4 {[%emt 0:00:52]} Bb4+ {[%emt 0:00:31]} 10. Bd2 {[%emt 0:00:44]} Bxd2+ {[%emt 0:00:16]} 11. Qxd2 {[%emt 0:00:06]} O-O {[%emt 0:00:43]} 12. O-O {[%emt 0:01:36]} b6 {[%emt 0:04:48]} 13. Ne5 {[%emt 0:08:28]} Bb7 {[%emt 0:00:59]} 14. Kh1 {[%emt 0:02:21]} Qd5 {[%emt 0:04:30]} 15. f3 {[%emt 0:05:41]} Rfd8 {[%emt 0:05:02]} 16. Rfd1 {[%emt 0:01:09]} Rac8 {[%emt 0:01:36]} 17. Qe2 {[%emt 0:05:04]} Qd6 {[%emt 0:04:53]} 18. Rd2 {[%emt 0:05:43]} Rc7 {[%emt 0:03:19]} 19. Re1 {[%emt 0:02:23]} Rdc8 {[%emt 0:03:37]} 20. b3 {[%emt 0:09:12]} Rc1 {[%emt 0:06:39]} 21. Bc4 {[%emt 0:03:12]} Rxe1+ {[%emt 0:02:08]} 22. Qxe1 {[%emt 0:00:11]} Bd5 {[%emt 0:02:17]} 23. Rd1 {[%emt 0:06:23]} Qa3 {[%emt 0:08:27]} 24. Qe2 {[%emt 0:02:19]} h6 {[%emt 0:02:42]} 25. Kg1 {[%emt 0:01:15]} Qd6 {[%emt 0:03:23]} 26. Qe3 {[%emt 0:02:28]} a5 {[%emt 0:09:37]} 27. Qd3 {[%emt 0:03:54]} Qa3 {[%emt 0:03:18]} 28. Qe2 {[%emt 0:01:11]} a4 {[%emt 0:03:20]} 29. Rb1 {[%emt 0:11:39]} axb3 {[%emt 0:03:51]} 30. Bxb3 {[%emt 0:01:53]} Bxb3 {[%emt 0:03:04]} 31. axb3 {[%emt 0:00:39]} Qb4 {[%emt 0:02:22]} 32. Qd1 {[%emt 0:00:56]} Nd5 {[%emt 0:00:57]} 33. Rb2 {[%emt 0:02:15]} Qc3 {[%emt 0:03:41]} 34. Qd2 {[%emt 0:00:49]} Qc7 {[%emt 0:01:53]} 35. Nd3 {[%emt 0:01:55]} Qa7 {[%emt 0:01:26]} 36. Ra2 {[%emt 0:01:10]} Qc7 {[%emt 0:00:07]} 37. Rb2 {[%emt 0:00:30]} Qd6 {[%emt 0:00:13]} 38. Rc2 {[%emt 0:00:41]} Rd8 {[%emt 0:01:37]} 39. Ne5 {[%emt 0:01:48]} Qa3 {[%emt 0:00:45]} 40. Nc6 {[%emt 0:01:16]} Ra8 {[%emt 0:01:12]} 41. b4 {[%emt 0:00:44]} Qb3 {[%emt 0:00:50]} 42. Rb2 {[%emt 0:00:32]} Qc4 {[%emt 0:01:04]} 43. Rc2 {[%emt 0:00:30]} Qb5 {[%emt 0:00:51]} 44. Qe2 {[%emt 0:00:26]} Qa4 {[%emt 0:01:04]} 45. Qd2 {[%emt 0:00:09]} Rc8 {[%emt 0:00:57]} 46. Qc1 {[%emt 0:00:32]} Kh8 {[%emt 0:00:40]} 47. Rc4 {[%emt 0:00:31]} Qa2 {[%emt 0:01:06]} 48. Ne5 {[%emt 0:00:34]} Rxc4 {[%emt 0:00:23]} 49. Qxc4 {[%emt 0:07:55]} 1/2-1/2

[Event "Kragero Resort Chess A 2019"]
[Site "Kragero"]
[Date "2019.02.21"]
[Round "3.20"]
[White "Ingebretsen, Jens E"]
[Black "Fossan, Aleksander"]
[Result "0-1"]
[ECO "B07"]
[WhiteElo "2297"]
[BlackElo "2040"]
[Annotator "NA"]
[PlyCount "64"]
[EventDate "2019.02.20"]
[EventType "swiss"]
[EventCountry "NOR"]
[SourceTitle "playchess.com"]
[Source "ChessBase"]
[SourceQuality "1"]
[TimeControl "5400+30"]

1. e4 {[%emt 0:00:59]} d6 {[%emt 0:00:00]} 2. d4 {[%emt 0:00:14]} Nf6 {[%emt 0:00:00]} 3. Bd3 {[%emt 0:00:06]} e5 {[%emt 0:00:32]} 4. Nf3 {[%emt 0:00:15]} Nbd7 {[%emt 0:02:57]} 5. c3 {[%emt 0:00:12]} g6 {[%emt 0:05:22]} 6. O-O {[%emt 0:00:19]} Bg7 {[%emt 0:00:10]} 7. Be3 {[%emt 0:00:05]} O-O {[%emt 0:00:00]} 8. Nbd2 {[%emt 0:00:16]} b6 {[%emt 0:04:32]} 9. a4 {[%emt 0:00:46]} a6 {[%emt 0:07:53]} 10. b4 {[%emt 0:02:19]} Bb7 {[%emt 0:00:40]} 11. Qc2 {[%emt 0:02:11]} Re8 {[%emt 0:02:04]} 12. d5 {[%emt 0:00:22]} c6 {[%emt 0:00:58]} 13. dxc6 {[%emt 0:04:52]} Bxc6 {[%emt 0:00:09]} 14. Rfd1 {[%emt 0:02:00]} d5 {[%emt 0:06:17]} 15. exd5 {[%emt 0:07:25]} Nxd5 {[%emt 0:00:28]} 16. Bg5 {[%emt 0:00:15]} Qc7 {[%emt 0:00:49]} 17. Ne4 {[%emt 0:05:18]} b5 {[%emt 0:03:02]} 18. axb5 {[%emt 0:01:30]} axb5 {[%emt 0:00:02]} 19. Rxa8 {[%emt 0:00:37]} Rxa8 {[%emt 0:00:08]} 20. Qb3 {[%emt 0:04:25]} N5f6 {[%emt 0:05:09]} 21. Bxf6 {[%emt 0:13:50]} Nxf6 {[%emt 0:01:10]} 22. Nfg5 {[%emt 0:00:46]} Nxe4 {[%emt 0:07:47]} 23. Bxe4 {[%emt 0:04:08]} Bxe4 {[%emt 0:01:58]} 24. Nxe4 {[%emt 0:00:10]} Qc6 {[%emt 0:02:20]} 25. f3 {[%emt 0:01:47]} Bh6 {[%emt 0:01:29]} 26. Rd6 {[%emt 0:01:59]} Qc7 {[%emt 0:07:43]} 27. Rd7 {[%emt 0:01:21]} Qb6+ {[%emt 0:01:15]} 28. Nc5 {[%emt 0:01:52]} Qf6 {[%emt 0:05:01]} 29. Qd5 {[%emt 0:06:00]} Ra1+ {[%emt 0:02:09]} 30. Kf2 {[%emt 0:00:39]} Qh4+ {[%emt 0:00:39]} 31. Ke2 {[%emt 0:00:36]} Qe1+ {[%emt 0:00:17]} 32. Kd3 {[%emt 0:00:08]} Qd1+ {[%emt 0:01:31] Kd4 [%emt 00:00:46]} 0-1